[Event "The Elitserien 2024/25: round 1 - 3"]
[Site "Scandic Infra City, Kanalvagen 10, Upplands Vasby, Sweden"]
[Date "2024.10.04"]
[Round "1.5"]
[White "Poley, Vladimir"]
[Black "Lissang, Christopher"]
[Result "0-1"]
[TimeControl "90 minutes for 40 moves + 30 minutes for the rest of the game + 30 seconds per move from move one."]
[WhiteTitle "IM"]
[BlackTitle "FM"]
[WhiteFideId "13500090"]
[BlackFideId "1709615"]
[WhiteElo "2275"]
[BlackElo "2332"]

1. Nf3 {[%clk 01:30:59]} {[%emt 00:22:18]} Nf6 {[%clk 01:23:25]} {[%emt
00:07:38]} 2. g3 {[%clk 01:31:23]} {[%emt 00:00:06]} d5 {[%clk 01:23:41]}
{[%emt 00:00:14]} 3. Bg2 {[%clk 01:31:46]} {[%emt 00:00:07]} c6 {[%clk
01:23:15]} {[%emt 00:00:56]} 4. O-O {[%clk 01:31:52]} {[%emt 00:00:24]} Bg4
{[%clk 01:23:35]} {[%emt 00:00:10]} 5. Ne5 {[%clk 01:32:16]} {[%emt 00:00:06]}
Bf5 {[%clk 01:21:21]} {[%emt 00:02:43]} 6. c4 {[%clk 01:29:28]} {[%emt
00:03:18]} Nbd7 {[%clk 01:19:54]} {[%emt 00:01:58]} 7. d4 {[%clk 01:27:05]}
{[%emt 00:02:54]} e6 {[%clk 01:19:47]} {[%emt 00:00:37]} 8. cxd5 {[%clk
01:26:41]} {[%emt 00:00:54]} exd5 {[%clk 01:19:54]} {[%emt 00:00:23]} 9. Nd3
{[%clk 01:25:58]} {[%emt 00:01:13]} Be7 {[%clk 01:18:00]} {[%emt 00:02:24]} 10.
Nc3 {[%clk 01:24:55]} {[%emt 00:01:32]} O-O {[%clk 01:18:13]} {[%emt 00:00:17]}
11. f3 {[%clk 01:23:03]} {[%emt 00:02:23]} Nb6 {[%clk 00:58:25]} {[%emt
00:20:18]} 12. Nf2 {[%clk 01:22:46]} {[%emt 00:00:46]} c5 {[%clk 00:55:44]}
{[%emt 00:03:11]} 13. e3 {[%clk 01:13:53]} {[%emt 00:09:23]} h6 {[%clk
00:51:46]} {[%emt 00:04:28]} 14. Ne2 {[%clk 01:07:25]} {[%emt 00:06:59]} Bh7
{[%clk 00:50:22]} {[%emt 00:01:54]} 15. b3 {[%clk 01:01:02]} {[%emt 00:06:53]}
Re8 {[%clk 00:49:07]} {[%emt 00:01:45]} 16. Bd2 {[%clk 00:58:11]} {[%emt
00:03:20]} a5 {[%clk 00:45:36]} {[%emt 00:04:02]} 17. Nf4 {[%clk 00:39:08]}
{[%emt 00:19:33]} a4 {[%clk 00:41:54]} {[%emt 00:04:12]} 18. Re1 {[%clk
00:35:18]} {[%emt 00:04:19]} c4 {[%clk 00:26:31]} {[%emt 00:15:53]} 19. Bc3
{[%clk 00:30:02]} {[%emt 00:05:46]} Qc7 {[%clk 00:21:48]} {[%emt 00:05:14]} 20.
bxc4 {[%clk 00:27:54]} {[%emt 00:02:38]} Nxc4 {[%clk 00:21:11]} {[%emt
00:01:06]} 21. e4 {[%clk 00:28:10]} {[%emt 00:00:14]} g5 {[%clk 00:15:40]}
{[%emt 00:06:02]} 22. Nxd5 {[%clk 00:22:13]} {[%emt 00:06:27]} Nxd5 {[%clk
00:16:05]} {[%emt 00:00:05]} 23. exd5 {[%clk 00:22:39]} {[%emt 00:00:04]} Nb6
{[%clk 00:15:53]} {[%emt 00:00:41]} 24. Rc1 {[%clk 00:20:49]} {[%emt 00:02:21]}
Nxd5 {[%clk 00:15:35]} {[%emt 00:00:48]} 25. Ba1 {[%clk 00:15:22]} {[%emt
00:05:56]} Qa5 {[%clk 00:13:36]} {[%emt 00:02:25]} 26. Re5 {[%clk 00:03:08]}
{[%emt 00:12:49]} f6 {[%clk 00:09:52]} {[%emt 00:04:13]} 27. Bc3 {[%clk
00:01:37]} {[%emt 00:02:02]} Qd8 {[%clk 00:07:34]} {[%emt 00:02:47]} 28. Rxd5
{[%clk 00:01:02]} {[%emt 00:01:05]} Qxd5 {[%clk 00:07:57]} {[%emt 00:00:07]} 29.
f4 {[%clk 00:01:27]} {[%emt 00:00:06]} Qxa2 {[%clk 00:07:38]} {[%emt 00:00:49]}
30. Bxb7 {[%clk 00:01:18]} {[%emt 00:00:39]} Ra7 {[%clk 00:06:43]} {[%emt
00:01:24]} 31. Qf3 {[%clk 00:01:32]} {[%emt 00:00:17]} Rd8 {[%clk 00:05:28]}
{[%emt 00:01:43]} 32. Re1 {[%clk 00:01:36]} {[%emt 00:00:27]} Qf7 {[%clk
00:05:09]} {[%emt 00:00:47]} 33. Ng4 {[%clk 00:01:53]} {[%emt 00:00:16]} Bf8
{[%clk 00:05:03]} {[%emt 00:00:35]} 34. Bd5 {[%clk 00:01:59]} {[%emt 00:00:25]}
Rxd5 {[%clk 00:05:10]} {[%emt 00:00:22]} 35. Qxd5 {[%clk 00:02:17]} {[%emt
00:00:13]} Kg7 {[%clk 00:03:30]} {[%emt 00:02:10]} 36. Qxf7+ {[%clk 00:01:14]}
{[%emt 00:01:33]} Kxf7 {[%clk 00:03:43]} {[%emt 00:00:16]} 37. fxg5 {[%clk
00:01:22]} {[%emt 00:00:22]} hxg5 {[%clk 00:02:35]} {[%emt 00:01:38]} 38. d5
{[%clk 00:01:19]} {[%emt 00:00:33]} Bc5+ {[%clk 00:01:43]} {[%emt 00:01:22]} 39.
Kg2 {[%clk 00:01:31]} {[%emt 00:00:19]} Ra6 {[%clk 00:01:26]} {[%emt 00:00:47]}
40. Re6 {[%clk 00:01:01]} {[%emt 00:00:59]} Rxe6 {[%clk 00:01:21]} {[%emt
00:00:35]} 41. dxe6+ {[%clk 00:01:29]} {[%emt 00:00:02]} Kxe6 {[%clk 00:01:32]}
{[%emt 00:00:19]} 42. Nxf6 {[%clk 00:01:54]} {[%emt 00:00:05]} Bd3 {[%clk
00:00:59]} {[%emt 00:01:01]} 43. h4 {[%clk 00:25:14]} {[%emt 00:07:13]} Be3
{[%clk 00:16:55]} {[%emt 00:14:33]} 44. Bb2 {[%clk 00:10:26]} {[%emt 00:15:19]}
Bc5 {[%clk 00:09:13]} {[%emt 00:08:11]} 45. hxg5 {[%clk 00:06:51]} {[%emt
00:04:06]} a3 {[%clk 00:09:06]} {[%emt 00:00:36]} 46. Bxa3 {[%clk 00:05:26]}
{[%emt 00:01:56]} Bxa3 {[%clk 00:09:30]} {[%emt 00:00:05]} 47. Kf3 {[%clk
00:03:56]} {[%emt 00:02:00]} Kf5 {[%clk 00:07:51]} {[%emt 00:02:09]} 48. Ke3
{[%clk 00:02:20]} {[%emt 00:02:06]} Bb1 {[%clk 00:07:53]} {[%emt 00:00:28]} 49.
Kf3 {[%clk 00:02:35]} {[%emt 00:00:16]} Bc1 {[%clk 00:07:57]} {[%emt 00:00:25]}
50. Kf2 {[%clk 00:02:28]} {[%emt 00:00:37]} Bxg5 {[%clk 00:07:16]} {[%emt
00:01:12]} 51. Nd5 {[%clk 00:02:23]} {[%emt 00:00:34]} Bd3 {[%clk 00:07:23]}
{[%emt 00:00:21]} 52. Ne3+ {[%clk 00:02:17]} {[%emt 00:00:38]} Ke4 {[%clk
00:07:41]} {[%emt 00:00:12]} 53. Ng4 {[%clk 00:02:38]} {[%emt 00:00:09]} Bc4
{[%clk 00:06:16]} {[%emt 00:01:55]} 54. Kg2 {[%clk 00:02:36]} {[%emt 00:00:33]}
Be6 {[%clk 00:06:32]} {[%emt 00:00:13]} 55. Nf2+ {[%clk 00:02:59]} {[%emt
00:00:08]} Ke3 {[%clk 00:06:49]} {[%emt 00:00:10]} 56. Nh3 {[%clk 00:02:37]}
{[%emt 00:00:53]} Bd5+ {[%clk 00:06:57]} {[%emt 00:00:23]} 57. Kh2 {[%clk
00:02:40]} {[%emt 00:00:27]} Bf6 {[%clk 00:07:05]} {[%emt 00:00:21]} 58. Nf4
{[%clk 00:02:47]} {[%emt 00:00:24]} Be4 {[%clk 00:07:18]} {[%emt 00:00:15]} 59.
Nh5 {[%clk 00:02:24]} {[%emt 00:00:55]} Be5 {[%clk 00:05:04]} {[%emt 00:02:44]}
60. Nf4 {[%clk 00:02:26]} {[%emt 00:00:28]} Kf3 {[%clk 00:05:08]} {[%emt
00:00:25]} 61. Kh3 {[%clk 00:02:07]} {[%emt 00:00:50]} Bf5 {[%clk 00:05:12]}
{[%emt 00:00:26]} 62. Kh4 {[%clk 00:01:34]} {[%emt 00:01:03]} Bf6+ {[%clk
00:05:29]} {[%emt 00:00:12]} 63. Kh5 {[%clk 00:02:01]} {[%emt 00:00:04]} Kxg3
{[%clk 00:05:45]} {[%emt 00:00:14]} 64. Nd5 {[%clk 00:02:13]} {[%emt 00:00:19]}
Bd8 {[%clk 00:05:39]} {[%emt 00:00:35]} 65. Kh6 {[%clk 00:02:35]} {[%emt
00:00:08]} Be4 {[%clk 00:04:26]} {[%emt 00:01:43]} 66. Nc3 {[%clk 00:02:46]}
{[%emt 00:00:19]} Bc6 {[%clk 00:04:30]} {[%emt 00:00:26]} 67. Ne2+ {[%clk
00:03:11]} {[%emt 00:00:05]} Kg4 {[%clk 00:04:32]} {[%emt 00:00:26]} 68. Nd4
{[%clk 00:03:21]} {[%emt 00:00:21]} Bd7 {[%clk 00:02:04]} {[%emt 00:02:59]} 69.
Kg6 {[%clk 00:03:05]} {[%emt 00:00:47]} Bb6 {[%clk 00:02:16]} {[%emt 00:00:17]}
70. Ne2 {[%clk 00:03:24]} {[%emt 00:00:11]} Bb5 {[%clk 00:01:50]} {[%emt
00:00:56]} 71. Nc3 {[%clk 00:03:36]} {[%emt 00:00:18]} Bc4 {[%clk 00:02:15]}
{[%emt 00:00:05]} 72. Kh6 {[%clk 00:03:39]} {[%emt 00:00:27]} Kf4 {[%clk
00:01:31]} {[%emt 00:01:13]} 73. Kh5 {[%clk 00:03:21]} {[%emt 00:00:49]} Ke3
{[%clk 00:01:19]} {[%emt 00:00:39]} 74. Kg4 {[%clk 00:03:13]} {[%emt 00:00:41]}
Kd3 {[%clk 00:01:14]} {[%emt 00:00:35]} 75. Nd1 {[%clk 00:03:26]} {[%emt
00:00:18]} Bb3 {[%clk 00:01:21]} {[%emt 00:00:22]} 76. Nb2+ {[%clk 00:03:46]}
{[%emt 00:00:11]} Kc2 {[%clk 00:01:42]} {[%emt 00:00:08]} 77. Nc4 {[%clk
00:04:06]} {[%emt 00:00:10]} Bxc4 {[%emt 00:00:12]} 0-1

[Event "The Elitserien 2024/25: round 1 - 3"]
[Site "Scandic Infra City, Kanalvagen 10, Upplands Vasby, Sweden"]
[Date "2024.10.04"]
[Round "1.6"]
[White "Thorn, Eric"]
[Black "Gajic, Mladen"]
[Result "1-0"]
[TimeControl "90 minutes for 40 moves + 30 minutes for the rest of the game + 30 seconds per move from move one."]
[WhiteTitle "FM"]
[BlackTitle "FM"]
[WhiteFideId "1710729"]
[BlackFideId "1709178"]
[WhiteElo "2351"]
[BlackElo "2294"]

1. d4 {[%clk 01:30:56]} {[%emt 00:00:02]} Nf6 {[%clk 01:30:22]} {[%emt
00:00:39]} 2. c4 {[%clk 01:31:01]} {[%emt 00:00:20]} c5 {[%clk 01:30:49]}
{[%emt 00:00:07]} 3. d5 {[%clk 01:31:23]} {[%emt 00:00:07]} e6 {[%clk
01:31:17]} {[%emt 00:00:03]} 4. Nc3 {[%clk 01:31:25]} {[%emt 00:00:28]} exd5
{[%clk 01:31:37]} {[%emt 00:00:11]} 5. cxd5 {[%clk 01:31:44]} {[%emt 00:00:10]}
d6 {[%clk 01:32:02]} {[%emt 00:00:06]} 6. Nf3 {[%clk 01:32:03]} {[%emt
00:00:10]} g6 {[%clk 01:32:31]} {[%emt 00:00:02]} 7. Nd2 {[%clk 01:32:02]}
{[%emt 00:00:30]} Bg7 {[%clk 01:32:52]} {[%emt 00:00:10]} 8. e4 {[%clk
01:32:21]} {[%emt 00:00:09]} O-O {[%clk 01:33:09]} {[%emt 00:00:15]} 9. Be2
{[%clk 01:32:44]} {[%emt 00:00:06]} Re8 {[%clk 01:33:14]} {[%emt 00:00:25]} 10.
O-O {[%clk 01:32:28]} {[%emt 00:00:47]} Na6 {[%emt 00:00:15]} 11. Re1 {[%clk
01:30:17]} {[%emt 00:02:39]} Nc7 {[%clk 01:25:18]} {[%emt 00:08:42]} 12. a4
{[%clk 01:28:35]} {[%emt 00:02:12]} b6 {[%clk 01:24:47]} {[%emt 00:01:02]} 13.
Bf3 {[%clk 01:16:28]} {[%emt 00:12:36]} Nd7 {[%clk 01:01:26]} {[%emt 00:23:51]}
14. Nc4 {[%clk 01:13:02]} {[%emt 00:03:56]} Ne5 {[%clk 00:57:19]} {[%emt
00:04:37]} 15. Be2 {[%clk 01:10:01]} {[%emt 00:03:30]} Ba6 {[%clk 00:42:38]}
{[%emt 00:15:12]} 16. Ne3 {[%clk 01:01:17]} {[%emt 00:09:14]} c4 {[%clk
00:27:35]} {[%emt 00:15:33]} 17. Nc2 {[%clk 00:58:19]} {[%emt 00:03:27]} Qc8
{[%clk 00:14:23]} {[%emt 00:13:43]} 18. Be3 {[%clk 00:54:48]} {[%emt 00:04:01]}
b5 {[%clk 00:08:19]} {[%emt 00:06:34]} 19. axb5 {[%clk 00:49:55]} {[%emt
00:05:23]} Nxb5 {[%clk 00:08:24]} {[%emt 00:00:25]} 20. Nxb5 {[%clk 00:29:25]}
{[%emt 00:21:01]} Bxb5 {[%clk 00:08:52]} {[%emt 00:00:01]} 21. Nd4 {[%clk
00:29:36]} {[%emt 00:00:19]} a6 {[%clk 00:08:30]} {[%emt 00:00:51]} 22. f3
{[%clk 00:22:05]} {[%emt 00:08:01]} Qb7 {[%clk 00:07:56]} {[%emt 00:01:05]} 23.
Qd2 {[%clk 00:20:44]} {[%emt 00:01:50]} Bd7 {[%clk 00:04:31]} {[%emt 00:03:55]}
24. Rec1 {[%clk 00:18:51]} {[%emt 00:02:23]} Rec8 {[%clk 00:01:03]} {[%emt
00:03:58]} 25. Ra2 {[%clk 00:15:10]} {[%emt 00:04:11]} h5 {[%clk 00:00:42]}
{[%emt 00:00:52]} 26. h3 {[%clk 00:13:33]} {[%emt 00:02:07]} Bb5 {[%clk
00:00:33]} {[%emt 00:00:40]} 27. Rca1 {[%clk 00:09:13]} {[%emt 00:04:49]} Rab8
{[%clk 00:00:33]} {[%emt 00:00:30]} 28. Ra5 {[%clk 00:07:57]} {[%emt 00:01:45]}
Bf6 {[%clk 00:00:49]} {[%emt 00:00:15]} 29. Nxb5 {[%clk 00:08:07]} {[%emt
00:00:19]} Bd8 {[%clk 00:00:32]} {[%emt 00:00:47]} 30. Nxd6 {[%clk 00:05:53]}
{[%emt 00:02:45]} 1-0

[Event "The Elitserien 2024/25: round 1 - 3"]
[Site "Scandic Infra City, Kanalvagen 10, Upplands Vasby, Sweden"]
[Date "2024.10.04"]
[Round "1.7"]
[White "Seiger, Vidar"]
[Black "Olund, Joar"]
[Result "1/2-1/2"]
[TimeControl "90 minutes for 40 moves + 30 minutes for the rest of the game + 30 seconds per move from move one."]
[BlackTitle "FM"]
[WhiteFideId "1756079"]
[BlackFideId "1714848"]
[WhiteElo "2010"]
[BlackElo "2368"]

1. Nf3 {[%clk 01:30:54]} {[%emt 00:00:04]} d5 {[%clk 01:30:57]} {[%emt
00:00:05]} 2. g3 {[%clk 01:31:17]} {[%emt 00:00:06]} Nf6 {[%clk 01:31:24]}
{[%emt 00:00:03]} 3. Bg2 {[%clk 01:31:38]} {[%emt 00:00:09]} c6 {[%clk
01:31:52]} {[%emt 00:00:02]} 4. c4 {[%clk 01:31:35]} {[%emt 00:00:32]} Bf5
{[%clk 01:32:19]} {[%emt 00:00:04]} 5. O-O {[%clk 01:31:54]} {[%emt 00:00:10]}
e6 {[%clk 01:32:04]} {[%emt 00:00:46]} 6. d3 {[%clk 01:32:08]} {[%emt
00:00:17]} Nbd7 {[%clk 01:32:28]} {[%emt 00:00:04]} 7. Nc3 {[%clk 01:31:34]}
{[%emt 00:01:05]} dxc4 {[%clk 01:29:54]} {[%emt 00:03:04]} 8. dxc4 {[%clk
01:32:01]} {[%emt 00:00:03]} Bc5 {[%clk 01:29:23]} {[%emt 00:01:01]} 9. b3
{[%clk 01:25:03]} {[%emt 00:07:27]} Qe7 {[%clk 01:28:57]} {[%emt 00:00:57]} 10.
Bb2 {[%clk 01:23:12]} {[%emt 00:02:21]} Rd8 {[%clk 01:27:08]} {[%emt 00:02:18]}
11. Qc1 {[%clk 01:22:34]} {[%emt 00:01:09]} h6 {[%clk 01:27:26]} {[%emt
00:00:12]} 12. Rd1 {[%clk 01:21:33]} {[%emt 00:01:31]} O-O {[%clk 01:25:54]}
{[%emt 00:02:02]} 13. Na4 {[%clk 01:21:27]} {[%emt 00:00:36]} Bd6 {[%clk
01:25:08]} {[%emt 00:01:03]} 14. Nd4 {[%clk 01:15:12]} {[%emt 00:06:58]} Be4
{[%clk 01:25:10]} {[%emt 00:00:29]} 15. Bxe4 {[%clk 01:11:21]} {[%emt
00:04:21]} Nxe4 {[%clk 01:25:18]} {[%emt 00:00:22]} 16. Qc2 {[%clk 01:11:41]}
{[%emt 00:00:10]} Nef6 {[%clk 01:14:17]} {[%emt 00:11:30]} 17. e3 {[%clk
01:07:28]} {[%emt 00:04:44]} Ba3 {[%clk 01:09:09]} {[%emt 00:05:38]} 18. Bxa3
{[%clk 01:03:18]} {[%emt 00:04:41]} Qxa3 {[%clk 01:09:14]} {[%emt 00:00:23]} 19.
c5 {[%clk 01:02:54]} {[%emt 00:00:56]} Qb4 {[%clk 01:06:18]} {[%emt 00:03:25]}
20. a3 {[%clk 01:02:37]} {[%emt 00:00:47]} Qa5 {[%clk 01:06:45]} {[%emt
00:00:02]} 21. b4 {[%clk 01:02:58]} {[%emt 00:00:10]} Qa6 {[%clk 01:04:43]}
{[%emt 00:02:32]} 22. Nb2 {[%clk 01:02:30]} {[%emt 00:00:58]} Ne5 {[%clk
00:54:05]} {[%emt 00:11:07]} 23. a4 {[%clk 00:38:07]} {[%emt 00:24:54]} Nd5
{[%clk 00:44:26]} {[%emt 00:10:09]} 24. Qb3 {[%clk 00:33:09]} {[%emt 00:05:28]}
b6 {[%clk 00:40:54]} {[%emt 00:04:01]} 25. e4 {[%clk 00:24:20]} {[%emt
00:09:20]} bxc5 {[%clk 00:40:08]} {[%emt 00:01:17]} 26. exd5 {[%clk 00:23:20]}
{[%emt 00:01:29]} cxd4 {[%clk 00:37:21]} {[%emt 00:03:17]} 27. dxe6 {[%clk
00:23:48]} {[%emt 00:00:02]} Rd5 {[%clk 00:32:58]} {[%emt 00:04:52]} 28. f4
{[%clk 00:20:43]} {[%emt 00:03:34]} Ng4 {[%clk 00:31:14]} {[%emt 00:02:15]} 29.
Re1 {[%clk 00:20:10]} {[%emt 00:01:04]} Ne3 {[%clk 00:23:18]} {[%emt 00:08:26]}
30. exf7+ {[%clk 00:17:57]} {[%emt 00:02:42]} Rxf7 {[%clk 00:22:48]} {[%emt
00:01:00]} 31. Nd3 {[%clk 00:17:45]} {[%emt 00:00:42]} Qb7 {[%clk 00:18:08]}
{[%emt 00:05:10]} 32. Rac1 {[%clk 00:16:38]} {[%emt 00:01:37]} c5 {[%clk
00:14:28]} {[%emt 00:04:11]} 33. Qa2 {[%clk 00:12:53]} {[%emt 00:04:15]} cxb4
{[%clk 00:10:31]} {[%emt 00:04:27]} 34. Nxb4 {[%clk 00:10:19]} {[%emt
00:03:03]} Qxb4 {[%clk 00:08:20]} {[%emt 00:02:42]} 35. Rxe3 {[%clk 00:10:21]}
{[%emt 00:00:28]} dxe3 {[%clk 00:05:56]} {[%emt 00:02:54]} 36. Qxd5 {[%clk
00:10:47]} {[%emt 00:00:03]} Qd2 {[%clk 00:00:51]} {[%emt 00:05:18]} 37. Rc8+
{[%clk 00:09:05]} {[%emt 00:02:29]} Kh7 {[%clk 00:01:20]} {[%emt 00:00:02]} 38.
Qxd2 {[%clk 00:09:14]} {[%emt 00:00:20]} exd2 {[%clk 00:01:48]} {[%emt
00:00:03]} 39. Rd8 {[%clk 00:09:34]} {[%emt 00:00:09]} Rb7 {[%clk 00:00:40]}
{[%emt 00:01:39]} 40. Rxd2 {[%clk 00:09:57]} {[%emt 00:00:07]} Rb1+ {[%clk
00:01:06]} {[%emt 00:00:04]} 41. Kg2 {[%clk 00:10:19]} {[%emt 00:00:07]} Ra1
{[%clk 00:01:34]} {[%emt 00:00:02]} 42. Rd4 {[%clk 00:10:38]} {[%emt 00:00:11]}
Ra2+ {[%clk 00:01:22]} {[%emt 00:00:42]} 43. Kh3 {[%clk 00:08:29]} {[%emt
00:02:39]} a5 {[%clk 00:18:29]} {[%emt 00:13:24]} 44. g4 {[%clk 00:32:04]}
{[%emt 00:06:54]} g5 {[%clk 00:13:27]} {[%emt 00:05:33]} 45. f5 {[%clk
00:23:59]} {[%emt 00:08:34]} Kg7 {[%clk 00:12:23]} {[%emt 00:01:34]} 46. Kg3
{[%clk 00:22:36]} {[%emt 00:01:53]} Kf6 {[%clk 00:11:27]} {[%emt 00:01:27]} 47.
Kf3 {[%clk 00:17:45]} {[%emt 00:05:20]} Ke5 {[%clk 00:07:12]} {[%emt 00:04:46]}
48. Re4+ {[%clk 00:16:10]} {[%emt 00:02:05]} Kd5 {[%clk 00:07:08]} {[%emt
00:00:35]} 49. Re6 {[%clk 00:10:37]} {[%emt 00:06:02]} Ra3+ {[%clk 00:05:53]}
{[%emt 00:01:44]} 50. Ke2 {[%clk 00:08:00]} {[%emt 00:03:07]} Ra2+ {[%clk
00:05:07]} {[%emt 00:01:16]} 51. Kd3 {[%clk 00:07:39]} {[%emt 00:00:51]} Rxa4
{[%clk 00:03:33]} {[%emt 00:02:05]} 52. Rxh6 {[%clk 00:07:13]} {[%emt
00:00:56]} Rxg4 {[%clk 00:01:41]} {[%emt 00:02:22]} 53. Ra6 {[%clk 00:07:32]}
{[%emt 00:00:10]} Rd4+ {[%clk 00:01:30]} {[%emt 00:00:41]} 54. Ke3 {[%clk
00:07:21]} {[%emt 00:00:41]} Re4+ {[%clk 00:01:56]} {[%emt 00:00:04]} 55. Kd3
{[%clk 00:07:41]} {[%emt 00:00:10]} Rd4+ {[%clk 00:02:23]} {[%emt 00:00:04]} 56.
Ke3 {[%clk 00:08:04]} {[%emt 00:00:06]} Re4+ {[%clk 00:02:50]} {[%emt
00:00:04]} 1/2-1/2

[Event "The Elitserien 2024/25: round 1 - 3"]
[Site "Scandic Infra City, Kanalvagen 10, Upplands Vasby, Sweden"]
[Date "2024.10.04"]
[Round "1.8"]
[White "Tuomainen, Felix"]
[Black "Nygren, Kim"]
[Result "1/2-1/2"]
[TimeControl "90 minutes for 40 moves + 30 minutes for the rest of the game + 30 seconds per move from move one."]
[WhiteTitle "FM"]
[BlackTitle "CM"]
[WhiteFideId "1720813"]
[BlackFideId "1706136"]
[WhiteElo "2247"]
[BlackElo "2155"]

1. d4 {[%clk 01:30:56]} {[%emt 00:00:03]} Nf6 {[%clk 01:30:48]} {[%emt
00:00:12]} 2. c4 {[%clk 01:30:59]} {[%emt 00:00:28]} e6 {[%clk 01:31:03]}
{[%emt 00:00:15]} 3. Nc3 {[%clk 01:30:40]} {[%emt 00:00:48]} Bb4 {[%clk
01:31:01]} {[%emt 00:00:32]} 4. a3 {[%clk 01:30:11]} {[%emt 00:01:01]} Bxc3+
{[%clk 01:31:18]} {[%emt 00:00:12]} 5. bxc3 {[%clk 01:30:37]} {[%emt 00:00:03]}
b6 {[%clk 01:31:11]} {[%emt 00:00:37]} 6. f3 {[%clk 01:30:58]} {[%emt
00:00:10]} d5 {[%clk 01:26:46]} {[%emt 00:04:54]} 7. cxd5 {[%clk 01:30:57]}
{[%emt 00:00:31]} exd5 {[%clk 01:25:48]} {[%emt 00:01:28]} 8. e3 {[%clk
01:27:48]} {[%emt 00:03:40]} O-O {[%clk 01:25:02]} {[%emt 00:01:15]} 9. Bd3
{[%clk 01:27:56]} {[%emt 00:00:22]} c5 {[%clk 01:20:41]} {[%emt 00:04:51]} 10.
Ne2 {[%clk 01:28:15]} {[%emt 00:00:10]} Re8 {[%clk 01:11:29]} {[%emt 00:09:42]}
11. O-O {[%clk 01:28:33]} {[%emt 00:00:13]} Ba6 {[%clk 01:04:58]} {[%emt
00:07:01]} 12. Re1 {[%clk 01:25:41]} {[%emt 00:03:23]} Bxd3 {[%clk 01:03:54]}
{[%emt 00:01:33]} 13. Qxd3 {[%clk 01:26:07]} {[%emt 00:00:05]} Nc6 {[%clk
01:00:49]} {[%emt 00:03:34]} 14. Bb2 {[%clk 01:25:47]} {[%emt 00:00:49]} c4
{[%clk 00:57:44]} {[%emt 00:03:37]} 15. Qd2 {[%clk 01:25:52]} {[%emt 00:00:22]}
Na5 {[%clk 00:57:47]} {[%emt 00:00:29]} 16. Nc1 {[%clk 01:20:53]} {[%emt
00:05:28]} Re6 {[%clk 00:51:07]} {[%emt 00:07:11]} 17. a4 {[%clk 01:15:42]}
{[%emt 00:05:42]} Qd7 {[%clk 00:50:23]} {[%emt 00:01:13]} 18. Ra2 {[%clk
01:04:24]} {[%emt 00:11:46]} Rae8 {[%clk 00:50:04]} {[%emt 00:00:50]} 19. Qf2
{[%clk 00:59:34]} {[%emt 00:05:19]} Nb7 {[%clk 00:33:05]} {[%emt 00:17:31]} 20.
g4 {[%clk 00:54:47]} {[%emt 00:05:17]} Nd6 {[%clk 00:29:23]} {[%emt 00:04:12]}
21. Ba3 {[%clk 00:53:23]} {[%emt 00:01:51]} h5 {[%clk 00:18:29]} {[%emt
00:11:27]} 22. h3 {[%clk 00:52:39]} {[%emt 00:01:15]} hxg4 {[%clk 00:16:10]}
{[%emt 00:02:50]} 23. hxg4 {[%clk 00:52:55]} {[%emt 00:00:13]} Nxg4 {[%clk
00:10:24]} {[%emt 00:06:15]} 24. fxg4 {[%clk 00:51:45]} {[%emt 00:01:40]} Ne4
{[%clk 00:09:32]} {[%emt 00:01:22]} 25. Qf5 {[%clk 00:47:28]} {[%emt 00:04:47]}
g6 {[%clk 00:09:15]} {[%emt 00:00:48]} 26. Qf1 {[%clk 00:44:24]} {[%emt
00:03:27]} Rf6 {[%clk 00:07:25]} {[%emt 00:02:25]} 27. Qg2 {[%clk 00:44:51]}
{[%emt 00:00:04]} Ng5 {[%clk 00:06:03]} {[%emt 00:01:52]} 28. Rf2 {[%clk
00:40:48]} {[%emt 00:04:29]} Rxf2 {[%clk 00:05:28]} {[%emt 00:01:09]} 29. Kxf2
{[%clk 00:40:53]} {[%emt 00:00:25]} Qxa4 {[%clk 00:02:50]} {[%emt 00:03:08]} 30.
Bb2 {[%clk 00:40:41]} {[%emt 00:00:38]} Re6 {[%clk 00:01:24]} {[%emt 00:02:00]}
31. Qxd5 {[%clk 00:34:54]} {[%emt 00:06:17]} Rf6+ {[%clk 00:01:47]} {[%emt
00:00:07]} 32. Kg2 {[%clk 00:33:53]} {[%emt 00:01:27]} Qc2+ {[%clk 00:01:25]}
{[%emt 00:00:55]} 33. Re2 {[%clk 00:34:11]} {[%emt 00:00:12]} Qd1 {[%clk
00:01:05]} {[%emt 00:00:51]} 34. Qxg5 {[%clk 00:28:35]} {[%emt 00:06:07]} Qf1+
{[%clk 00:01:21]} {[%emt 00:00:12]} 35. Kh2 {[%clk 00:28:06]} {[%emt 00:00:58]}
Rf2+ {[%clk 00:01:35]} {[%emt 00:00:17]} 36. Rxf2 {[%clk 00:28:24]} {[%emt
00:00:13]} Qxf2+ {[%clk 00:02:00]} {[%emt 00:00:05]} 37. Kh3 {[%clk 00:28:20]}
{[%emt 00:00:32]} Qf3+ {[%clk 00:02:06]} {[%emt 00:00:25]} 38. Kh2 {[%clk
00:28:34]} {[%emt 00:00:16]} Qf2+ {[%clk 00:02:30]} {[%emt 00:00:06]} 39. Kh3
{[%clk 00:29:00]} {[%emt 00:00:04]} Qf3+ {[%clk 00:02:55]} {[%emt 00:00:06]}
1/2-1/2